bitfinex/quotes_ETHUSD_20241207
["timestamp","ask_amount","ask_price","bid_price","bid_amount"]
[1733560651626,0.07728543,3987.7,3987.6,1.75542]
[1733560651998,0.7864,3988.3,3987.6,1.75542]
[1733560652518,0.07735388,3988.2,3987.6,1.75542]
[1733560653725,0.10869868,3988.2,3987.4,1.75552]
[1733560653904,0.7644,3988.1,3987.6,1.75541]
[1733560654421,0.0773265,3988.0,3987.6,1.75541]
[1733560654871,0.0773265,3988.0,3987.4,1.75552]
[1733560655073,0.0773265,3988.0,3987.5,1.18623399]
[1733560655259,0.0773265,3988.0,3987.4,1.75552]
[1733560655436,0.0773265,3988.0,3987.5,1.18623113]
[1733560655634,0.0773265,3988.0,3987.4,1.75552]
[1733560655846,0.0773265,3988.0,3987.5,1.18621807]
[1733560656047,0.0773265,3988.0,3987.4,1.75552]
[1733560656271,0.0773265,3988.0,3987.5,1.18620296]
[1733560656571,0.0773265,3988.0,3987.3,1.04785911]
[1733560656754,0.0773265,3988.0,3987.6,1.75542]
[1733560657747,0.0773265,3988.0,3987.5,1.75548]
[1733560657938,0.0773265,3988.0,3987.3,1.04785911]
[1733560658157,0.0773265,3988.0,3987.4,1.18622198]
[1733560658343,0.0773265,3988.0,3987.5,1.18622198]
[1733560658554,0.0773265,3988.0,3987.3,1.04785911]
[1733560658873,0.0773265,3988.0,3987.4,1.18620812]
[1733560659169,0.0773265,3988.0,3987.5,1.18620812]
[1733560660337,0.0773265,3988.0,3987.5,1.75548]
[1733560662260,0.10867128,3988.0,3987.1,1.04785911]
[1733560662454,0.7619,3987.9,3987.2,1.18699905]
[1733560662654,0.7619,3987.7,3987.0,2.80352911]
[1733560662870,0.7619,3987.5,3987.1,1.18714578]
[1733560663173,0.07721895,3987.4,3987.2,1.18714578]
[1733560663360,0.07721895,3987.4,3987.0,2.80352911]
[1733560663557,0.07721895,3987.4,3987.1,1.18710016]
[1733560663902,0.07721895,3987.4,3987.0,2.80352911]
[1733560664061,0.07721895,3987.4,3987.1,1.18719118]
[1733560664259,0.07721895,3987.4,3987.0,2.80352911]
[1733560664555,0.07721895,3987.4,3987.1,1.1871928]
[1733560664774,0.07721895,3987.4,3987.0,2.80352911]
[1733560665068,0.07721895,3987.4,3987.1,1.1871475]
[1733560665273,0.07721895,3987.4,3987.0,1.75567]
[1733560665498,0.07721895,3987.4,3987.1,1.18717287]
[1733560665700,0.07721895,3987.4,3987.0,1.75567]
[1733560665906,0.07721895,3987.4,3987.1,1.18707482]
[1733560666202,0.7619,3987.5,3987.0,1.75567]
[1733560666406,0.7619,3987.5,3987.1,1.18789467]
[1733560666566,0.07716811,3987.4,3987.0,1.75567]
[1733560666764,0.07716811,3987.4,3987.1,1.18783436]
[1733560666967,0.07716811,3987.4,3987.0,1.75567]
[1733560667291,0.07716811,3987.4,3987.1,1.18782338]
[1733560667601,0.07716811,3987.4,3987.0,1.75567]
[1733560667776,0.07716811,3987.4,3987.1,1.19429526]
[1733560667975,0.07716811,3987.4,3987.0,1.75567]
[1733560668176,0.07716811,3987.4,3987.1,1.19447279]
[1733560668402,0.07716811,3987.4,3987.0,1.75567]
[1733560668578,0.07716811,3987.4,3987.1,1.19443292]
[1733560668772,0.07716811,3987.4,3987.0,1.75567]
[1733560668994,0.07716811,3987.4,3987.1,1.19450932]
[1733560669309,0.07716811,3987.4,3986.9,1.04785911]
[1733560669468,0.7619,3987.3,3987.0,1.19452476]
[1733560669665,0.7619,3987.1,3986.4,2.80377911]
[1733560669909,0.07673581,3987.0,3986.4,1.75592]
[1733560670316,0.07673581,3987.0,3986.3,1.04785911]
[1733560670612,0.07673581,3987.0,3986.5,1.75589]
[1733560671043,0.07673581,3987.0,3986.2,1.07035911]
[1733560671044,0.7619,3986.9,3986.2,1.04785911]
[1733560671348,0.30360214,3986.8,3986.1,1.7561]
[1733560671560,0.27224833,3986.8,3986.1,1.7561]
[1733560672449,0.30360332,3986.8,3986.1,1.7561]
[1733560672830,0.7619,3986.7,3985.9,1.75618]
[1733560673024,0.801755,3986.6,3985.6,2.80412911]
[1733560673224,0.87825726,3986.6,3985.7,2.94523056]
[1733560673573,0.87825726,3986.6,3985.7,1.75626]
[1733560673574,0.87825733,3986.6,3985.7,1.75626]
[1733560673746,0.87825774,3986.6,3985.7,1.75626]
[1733560673941,0.84689948,3986.6,3985.4,1.04785911]
[1733560674143,0.7704,3986.4,3985.5,1.18878785]
[1733560674342,0.7704,3986.4,3985.2,1.56674145]
[1733560674343,0.7704,3986.2,3985.2,2.80431911]
[1733560674550,0.7704,3986.2,3985.2,1.75646]
[1733560674768,0.7704,3986.0,3985.2,1.75646]
[1733560674955,0.7704,3986.0,3984.8,2.65305961]
[1733560674956,0.7704,3986.0,3984.9,2.80447911]
[1733560675166,0.7704,3986.0,3984.8,1.07035911]
[1733560675167,0.84628061,3985.9,3984.8,1.07035911]
[1733560675378,0.7704,3985.9,3985.1,1.75653]
[1733560675533,0.22465045,3986.0,3984.8,1.75663]
[1733560675534,0.7704,3985.7,3984.8,1.75663]
[1733560675734,0.7704,3985.7,3984.5,1.10881816]
[1733560675935,0.07573776,3985.6,3984.9,1.75662]
[1733560676473,0.7704,3985.4,3984.3,1.75688]
[1733560676673,0.07559492,3985.3,3984.3,1.75688]
[1733560677031,0.07559492,3985.3,3984.4,1.75684]
[1733560677843,0.07559492,3985.3,3984.5,1.7568]
[1733560678044,0.07559492,3985.3,3984.7,1.75671]
[1733560678357,0.07559492,3985.3,3984.4,1.08631816]
[1733560678670,0.07559492,3985.3,3984.8,1.75663]
[1733560678974,0.7704,3985.4,3984.9,1.75662]
[1733560679469,0.07534422,3985.3,3984.9,1.75662]
[1733560679775,0.7704,3985.4,3984.9,1.75662]
[1733560680170,0.07534422,3985.3,3984.9,1.75662]
[1733560680540,0.7704,3985.4,3984.9,1.75662]
[1733560680842,0.07534422,3985.3,3984.9,1.75662]
[1733560681053,0.7704,3985.4,3984.1,0.02509339]
[1733560681255,0.2,3986.7,3985.4,1.7564]
[1733560681256,0.8244,3985.8,3985.4,1.7564]
[1733560681450,0.07513744,3985.7,3985.4,1.7564]
[1733560681661,0.8244,3985.8,3985.4,1.7564]
[1733560681880,0.07513744,3985.7,3985.4,1.7564]
[1733560682053,0.8244,3985.8,3985.4,1.7564]
[1733560682563,0.8244,3985.8,3984.8,1.75665]
[1733560682564,0.07513744,3985.7,3985.5,1.75634]
[1733560682986,0.8244,3985.8,3985.7,1.75627]
[1733560685980,0.8244,3985.8,3985.5,1.75634]
[1733560686180,0.8244,3985.8,3985.3,1.75643]
[1733560686397,0.8244,3985.8,3985.2,1.75648]
[1733560686949,0.07543179,3985.7,3985.3,1.75644]
[1733560687345,0.07543179,3985.7,3984.3,0.0225]
[1733560687346,0.7603,3985.6,3984.3,0.0225]
[1733560687591,0.83571808,3985.6,3984.3,0.0225]
[1733560687797,0.7603,3985.6,3984.3,0.0225]
[1733560688489,0.7603,3985.6,3985.2,1.75649]
[1733560688717,0.7603,3985.6,3985.2,1.75646]
[1733560689097,0.7603,3985.6,3984.7,1.7567]
[1733560689298,0.7603,3985.4,3984.7,1.7567]
[1733560689717,0.7603,3985.4,3984.4,1.75681]
[1733560690019,0.7603,3985.4,3984.2,0.24043881]
[1733560690312,0.83556429,3985.3,3984.2,0.24043881]
[1733560690909,0.83556429,3985.3,3984.7,1.75671]
[1733560691415,0.03136998,3985.2,3984.1,1.75695]
[1733560691617,0.79166998,3985.2,3984.5,1.7568]
[1733560691910,0.07496434,3985.1,3984.6,1.75674]
[1733560692225,0.7603,3985.0,3984.6,1.75674]
[1733560692514,0.07491512,3984.9,3984.6,1.75671]
[1733560692691,0.7603,3985.0,3984.6,1.75671]
[1733560695079,0.7603,3985.0,3983.7,0.0225]
[1733560695283,0.7603,3985.0,3983.8,0.35075456]
[1733560695620,0.7603,3985.0,3984.9,1.75663]
[1733560701892,0.7603,3985.0,3984.0,1.75702]
[1733560702115,0.7603,3985.0,3984.7,1.75669]
[1733560702333,0.7603,3985.0,3984.0,1.75702]
[1733560702628,0.7603,3985.0,3984.8,1.75666]
[1733560702929,0.07491512,3984.9,3984.8,1.75666]
[1733560707575,0.07491512,3984.9,3984.5,1.75679]
[1733560707777,0.8177,3984.8,3984.5,1.75679]
[1733560708142,0.07431803,3984.7,3984.5,1.75679]
[1733560708336,0.8177,3984.8,3984.5,1.75679]
[1733560708537,0.07431803,3984.7,3984.5,1.75679]
[1733560708773,0.8177,3984.8,3984.5,1.75679]
[1733560708973,0.07430431,3984.6,3984.5,1.75679]
[1733560709141,0.8177,3984.8,3984.5,1.75679]
[1733560709338,0.07431803,3984.7,3984.5,1.75679]
[1733560709534,0.8177,3984.8,3984.5,1.75679]
[1733560709774,0.07431803,3984.7,3984.5,1.75679]
[1733560710376,0.07427885,3984.6,3984.2,1.75689]
[1733560710562,0.07427885,3984.6,3983.7,2.86758851]
[1733560710563,0.07427885,3984.6,3983.7,1.11046851]
[1733560710901,0.55,3983.7,3982.5,0.1561997]
[1733560711200,0.55,3983.7,3982.5,1.9138797]
[1733560711201,1.08796851,3983.2,3982.5,1.9138797]
[1733560711398,1.08796851,3983.2,3982.5,0.1561997]
[1733560711399,0.8177,3983.1,3982.5,0.1561997]
[1733560711608,0.89118414,3983.1,3982.5,1.9138597]
[1733560711761,0.89118414,3983.1,3982.5,0.1561997]
[1733560712393,1.08796851,3982.9,3982.5,0.1561997]
[1733560712559,1.3677,3982.8,3982.5,0.1561997]
[1733560712760,0.13990903,3982.7,3982.5,0.0061997]
[1733560713212,0.07262604,3982.6,3982.5,0.0061997]
[1733560715481,0.07262604,3982.6,3981.5,1.75812]
[1733560715678,0.10401911,3982.6,3981.5,1.75812]
[1733560716005,0.10401911,3982.6,3982.0,1.75788]
[1733560716006,0.07262604,3982.6,3982.0,1.75788]
[1733560716201,0.23064955,3982.6,3982.0,1.75788]
[1733560716501,0.23064955,3982.6,3982.1,1.75785]
[1733560718263,0.23064955,3982.6,3982.1,1.606772]
[1733560718577,0.83639212,3982.5,3982.1,1.606772]
[1733560718793,0.805,3982.5,3982.1,1.606772]
[1733560719002,0.07178725,3982.4,3982.1,1.606772]
[1733560719410,0.10317905,3982.4,3981.8,1.75798]
[1733560719728,2.46365647,3982.4,3981.8,1.75798]
[1733560720020,0.07178725,3982.4,3980.9,0.43664374]
[1733560720173,0.07178725,3982.4,3981.8,1.75796]
[1733560720890,0.805,3982.3,3981.3,1.75821]
[1733560721078,0.10312868,3982.2,3981.6,1.75807]
[1733560721477,0.10312868,3982.2,3980.9,1.75837]
[1733560721478,0.805,3982.1,3980.9,1.75837]
[1733560721676,0.805,3982.1,3980.5,0.6475]
[1733560721677,0.07147752,3982.0,3980.6,1.75852]
[1733560721877,0.07147752,3982.0,3981.5,1.75811]
[1733560722126,0.07147752,3982.0,3981.6,1.75808]
[1733560722292,0.07147752,3982.0,3980.7,0.32821834]
[1733560722475,0.805,3982.1,3980.8,1.75844]
[1733560722814,0.805,3982.1,3981.7,1.75802]
[1733560723215,0.07144838,3982.0,3981.7,1.75802]
[1733560723891,0.07144838,3982.0,3981.8,1.75799]
[1733560724095,0.805,3982.1,3981.4,1.75817]
[1733560724310,0.805,3982.1,3980.7,0.303102]
[1733560724311,0.805,3982.1,3980.2,1.75866]
[1733560724491,0.55,3981.2,3979.9,1.75883]
[1733560724690,0.7697,3981.0,3979.9,1.75883]
[1733560724889,0.07127544,3980.9,3980.6,1.75852]
[1733560725388,0.7697,3981.0,3979.6,0.0225]
[1733560725611,0.7697,3981.0,3980.5,2.38354]
[1733560725915,0.07120261,3980.9,3980.5,2.38354]
[1733560726109,0.7697,3981.0,3980.5,2.38354]
[1733560726327,0.07112978,3980.9,3980.5,2.38354]
[1733560726533,0.7697,3981.0,3980.5,2.38354]
[1733560726691,0.07112978,3980.9,3980.5,2.38354]
[1733560726891,0.7697,3981.0,3980.7,1.75848]
[1733560727204,0.07112978,3980.9,3980.7,1.75848]
[1733560727711,0.7697,3981.0,3980.7,1.75848]
[1733560728030,0.07112978,3980.9,3980.7,1.75848]
[1733560728401,0.7697,3981.0,3980.7,1.75848]
[1733560728918,0.07085301,3980.9,3980.7,1.75848]
[1733560729113,0.7697,3981.0,3980.7,1.75848]
[1733560729334,0.07085301,3980.9,3980.7,1.75848]
[1733560729504,0.7697,3981.0,3980.7,1.75848]
[1733560729701,0.07085301,3980.9,3980.7,1.75848]
[1733560729893,0.7697,3981.0,3980.7,1.75848]
[1733560730090,0.07049518,3980.9,3980.7,1.75848]
[1733560730399,0.7697,3981.0,3980.5,0.625]
[1733560730617,0.7697,3981.0,3980.5,2.38356]
[1733560730819,0.10189913,3980.9,3980.5,2.38356]
[1733560731186,0.10189912,3980.9,3980.5,0.625]
[1733560731792,0.0314046,3980.8,3980.5,0.625]
[1733560732219,0.0704677,3980.7,3980.5,0.625]
[1733560732640,1.08271774,3981.0,3980.5,0.625]
[1733560732991,0.07049518,3980.9,3980.5,0.625]
[1733560735335,0.07049518,3980.9,3980.5,2.38355]
[1733560737934,0.07049518,3980.9,3980.5,0.625]
[1733560738126,0.07049518,3980.9,3980.6,1.75851]
[1733560738632,0.07049518,3980.9,3980.7,1.75847]
[1733560738942,0.07049518,3980.9,3980.8,1.75844]
[1733560739228,0.8085,3981.4,3981.2,1.75825]
[1733560739701,0.0703206,3981.3,3981.2,1.75825]
[1733560741597,0.0703206,3981.3,3980.6,0.12725]
[1733560741805,0.0703206,3981.3,3981.1,1.7583]
[1733560742012,0.8085,3981.4,3981.1,1.7583]
[1733560742231,0.8085,3981.4,3981.2,1.75826]
[1733560742811,0.8085,3981.9,3981.4,1.75817]
[1733560743331,1.23167053,3981.9,3981.5,1.75811]
[1733560743645,0.0313965,3981.8,3981.3,1.7582]
[1733560743799,0.0313965,3981.8,3981.5,1.75812]
[1733560744117,0.8085,3981.9,3981.6,1.75808]
[1733560744309,0.8085,3981.9,3981.7,1.75803]
[1733560744722,1.06272791,3982.0,3981.1,1.7583]
[1733560744903,1.06272791,3982.0,3981.2,0.353918]
[1733560745098,1.06272791,3982.0,3981.9,1.75795]
[1733560746401,1.06272791,3982.0,3981.8,1.75798]
[1733560746825,1.06272791,3982.0,3981.9,1.75795]
[1733560750639,0.7778,3982.6,3981.7,0.0225]
[1733560750914,0.2,3984.1,3981.7,0.200558]
[1733560750915,0.03138849,3983.2,3981.7,0.200558]
[1733560751118,0.7778,3983.1,3981.8,1.75799]
[1733560751321,0.7778,3982.9,3981.7,0.0225]
[1733560751638,0.09334456,3982.8,3981.9,1.75792]
[1733560752010,0.09334456,3982.8,3982.0,1.75789]
[1733560752553,0.06195317,3982.8,3982.1,1.75785]
[1733560752744,0.0313909,3982.8,3981.7,0.0225]
[1733560752942,0.7778,3982.9,3982.2,1.7578]
[1733560753146,0.06217597,3982.8,3982.4,1.75773]
[1733560753456,0.0935642,3982.8,3982.4,1.75773]
[1733560753925,0.0935642,3982.8,3981.7,0.0225]
[1733560754126,0.7691,3982.7,3981.9,1.75794]
[1733560754326,0.7691,3982.7,3981.7,1.75804]
[1733560754533,0.0935193,3982.6,3981.7,1.75804]
[1733560754731,0.06212658,3982.6,3981.7,1.75804]
[1733560754914,0.7691,3982.9,3981.8,0.0225]
[1733560755116,0.61218327,3982.8,3982.0,1.75789]
[1733560755356,0.13812833,3982.7,3982.0,1.75789]
[1733560755658,0.83125581,3982.6,3981.8,1.75799]
[1733560755818,0.83125581,3982.6,3981.6,1.75808]
[1733560755819,0.03139269,3982.5,3981.6,1.75808]
[1733560756153,0.03139269,3982.5,3981.5,0.0225]
[1733560756154,0.03139386,3982.4,3981.7,1.75804]
[1733560756457,0.06205252,3982.3,3981.7,1.75804]
[1733560756621,0.03139374,3982.2,3981.7,1.75804]
[1733560757525,0.7691,3982.6,3981.7,1.75804]
[1733560757729,0.18025592,3982.5,3981.7,1.75804]
[1733560757940,0.21094218,3982.5,3981.7,1.75804]
[1733560758136,0.03139372,3982.4,3981.7,1.75804]
[1733560758337,0.21094218,3982.5,3981.7,1.75804]
[1733560758555,0.06205252,3982.3,3981.7,1.75804]
[1733560758758,0.0313937,3982.3,3981.7,1.75804]
[1733560758966,0.06203879,3982.2,3981.7,1.75804]
[1733560759454,0.0620397,3982.1,3981.3,1.75821]
[1733560759618,0.0620397,3982.1,3981.5,1.75813]
[1733560759818,0.7691,3982.6,3981.8,1.75796]
[1733560760243,0.7691,3982.6,3981.4,1.75817]
[1733560760244,0.06209462,3982.5,3981.9,1.75794]
[1733560760427,0.06209462,3982.5,3981.6,2.36047742]
[1733560760639,0.06209462,3982.5,3982.3,1.75775]
[1733560760867,0.7592,3983.4,3981.9,0.0225]
[1733560761158,0.6093406,3983.3,3982.3,1.75774]
[1733560761368,1.75782,3982.2,3981.0,1.04116912]
[1733560761568,0.7592,3982.1,3980.6,0.0225]
[1733560761716,0.7592,3982.1,3981.2,1.75822]
[1733560762057,0.06226335,3982.0,3981.2,1.75822]
[1733560762218,0.06226335,3982.0,3981.3,1.75821]
[1733560762824,0.06226335,3982.0,3981.4,1.75815]
[1733560763026,0.06226335,3982.0,3980.6,0.0225]
[1733560763027,0.06226335,3982.0,3981.2,1.75825]
[1733560763251,0.03139676,3981.9,3981.2,1.75825]
[1733560763555,0.06213641,3981.9,3981.2,1.75825]
[1733560763936,0.7592,3982.1,3981.2,1.75825]
[1733560764265,0.7592,3982.1,3980.6,0.0225]
[1733560764444,0.7592,3982.1,3981.3,1.7582]
[1733560764963,0.06215015,3982.0,3981.3,1.7582]
[1733560765846,0.06215015,3982.0,3980.7,0.40491465]
[1733560766170,0.06215015,3982.0,3981.4,1.75817]
[1733560766773,0.06215015,3982.0,3981.4,1.74817]
[1733560767439,0.06215015,3982.0,3981.2,0.0225]
[1733560767634,0.06215015,3982.0,3980.5,1.04116912]
[1733560767635,0.55,3981.7,3980.5,1.75856]
[1733560767833,1.75817,3981.4,3980.6,0.625]
[1733560768072,0.55,3981.5,3980.6,0.625]
[1733560768073,0.7592,3981.2,3980.6,0.625]
[1733560768670,0.7592,3981.0,3980.6,0.625]
[1733560769037,0.06159724,3980.9,3980.6,0.625]
[1733560773655,0.09300032,3980.9,3980.6,0.625]
[1733560773960,0.06159724,3980.9,3980.6,0.625]
[1733560774337,0.813,3980.7,3980.6,0.625]
[1733560774776,0.87425919,3980.7,3980.6,0.625]
[1733560777345,1.14066581,3980.7,3980.6,0.625]
[1733560778089,1.72207189,3980.7,3980.6,0.625]
[1733560778298,1.72207189,3980.7,3980.6,0.31557093]
[1733560778299,5.84102931,3980.7,3980.6,0.31557093]
[1733560778593,1.3633,3980.5,3980.4,0.625]
[1733560778889,1.45549988,3980.5,3980.4,0.625]
[1733560779185,1.45549988,3980.5,3979.1,0.0225]
[1733560779186,2.00817989,3980.5,3979.1,0.0225]
[1733560779391,0.55,3980.2,3979.2,1.75913]
[1733560779593,0.58141434,3980.2,3979.2,1.75913]
[1733560779792,0.55,3980.0,3979.0,1.75922]
[1733560780094,0.87392663,3979.9,3979.1,1.75917]
[1733560780255,0.87392663,3979.9,3978.5,0.1656307]
[1733560780256,0.14239266,3979.8,3978.9,1.75927]
[1733560780458,0.20300555,3979.8,3978.9,1.75927]
[1733560781152,0.8133,3979.7,3978.7,1.75935]
[1733560781382,0.20300555,3979.8,3978.7,1.75935]
[1733560781383,0.84471766,3979.6,3978.7,1.75935]
[1733560781702,0.90512026,3979.6,3978.7,1.75935]
[1733560782048,0.8737026,3979.6,3978.7,1.75935]
[1733560782599,0.8737026,3979.6,3978.9,1.75927]
[1733560782801,0.90512013,3979.6,3978.9,1.75927]
[1733560782968,0.8737026,3979.6,3978.9,1.75927]
[1733560783864,0.8737026,3979.6,3979.0,1.75922]
[1733560784496,0.8737026,3979.6,3979.3,1.75907]
[1733560784713,0.8737026,3979.6,3979.1,1.75918]
[1733560784879,0.8133,3979.6,3979.1,1.75918]
[1733560785197,0.8133,3979.6,3978.5,0.1656307]
[1733560785573,0.8133,3979.6,3979.3,1.7591]
[1733560786464,0.58141443,3979.5,3978.5,0.1656307]
[1733560786668,0.8133,3979.1,3978.5,0.1656307]
[1733560786902,0.55,3979.0,3978.5,0.1656307]
[1733560787199,0.61004587,3979.0,3978.5,0.1656307]
[1733560787866,0.61004587,3979.0,3978.5,1.9250707]
[1733560789293,0.06004587,3979.0,3978.5,1.9250707]
[1733560789800,0.06004587,3979.0,3978.5,0.1656307]
[1733560790143,0.05787422,3978.9,3978.5,0.1656307]
[1733560790613,0.55,3979.0,3978.5,0.1656307]
[1733560790777,0.55,3979.0,3978.6,1.75939]
[1733560790984,0.05788885,3978.9,3978.6,1.75939]
[1733560791479,0.05788885,3978.9,3978.5,0.1656307]
[1733560792400,0.05788885,3978.9,3978.6,1.75939]
[1733560792709,0.8133,3979.1,3978.6,1.75939]
[1733560792876,0.8133,3979.1,3978.5,0.1656307]
[1733560794374,0.8133,3979.1,3978.8,1.75932]
[1733560798682,0.8133,3979.1,3978.5,0.1656307]
[1733560798683,0.8133,3979.1,3978.6,1.7594]
[1733560799885,0.8133,3979.1,3978.5,0.1656307]
[1733560800086,0.8133,3979.1,3978.8,1.75931]
[1733560800287,0.05785871,3979.0,3978.8,1.75931]
[1733560800487,0.8133,3979.1,3978.8,1.75931]
[1733560800994,0.8133,3979.1,3978.6,1.75941]
[1733560801308,0.8133,3979.1,3978.5,0.1656307]
[1733560801514,0.8133,3979.1,3978.7,1.75936]
[1733560802635,0.8133,3979.1,3978.5,0.1656307]
[1733560803130,0.8133,3979.1,3978.7,1.75932]
[1733560804632,0.8133,3979.1,3978.5,0.1656307]
[1733560804835,0.8133,3979.1,3978.9,1.75928]
[1733560805194,0.7619,3979.9,3978.6,1.78191]
[1733560805531,5.52724108,3979.8,3979.1,1.75917]
[1733560805735,2.52724108,3979.8,3979.1,1.75917]
[1733560805890,0.79331534,3979.7,3978.9,1.75928]
[1733560806090,0.79331534,3979.7,3978.7,1.75935]
[1733560806288,0.7619,3979.5,3978.5,0.1656307]
[1733560806489,0.03141939,3979.4,3978.7,1.75933]
[1733560806715,0.08938797,3979.4,3978.7,1.75933]
[1733560806999,0.05796858,3979.4,3978.7,1.75933]
[1733560807307,0.05796858,3979.4,3978.8,1.75931]
[1733560808034,0.05796858,3979.4,3978.5,0.1656307]
[1733560808396,0.05796858,3979.4,3978.9,1.75927]
[1733560808629,0.05796858,3979.4,3979.0,1.75921]
[1733560809448,0.05796858,3979.4,3979.1,1.75917]
[1733560811133,0.05796858,3979.4,3978.5,0.1656307]
[1733560811360,0.05796858,3979.4,3979.2,1.75914]
[1733560812149,0.7619,3979.5,3979.2,1.75914]
[1733560812449,0.05662041,3979.4,3979.2,1.75914]
[1733560814812,0.05662041,3979.4,3978.7,1.75936]
[1733560815016,0.05662041,3979.4,3979.1,1.75916]
[1733560815428,0.7619,3979.5,3979.1,1.75916]
[1733560815767,0.05662041,3979.4,3979.1,1.75916]
[1733560816422,0.7619,3979.5,3979.1,1.75916]
[1733560816755,0.05532708,3979.4,3979.1,1.75916]
[1733560817318,0.05532708,3979.4,3979.2,1.75914]
[1733560819116,0.05532708,3979.4,3979.3,1.7591]
[1733560819316,0.05532708,3979.4,3979.3,2.0441198]
[1733560819553,0.801,3979.8,3979.3,2.0441198]
[1733560819554,0.801,3979.8,3979.7,1.75892]
[1733560820215,0.801,3980.1,3979.3,1.09109796]
[1733560820531,1.22735648,3980.2,3980.1,1.607662]
[1733560821369,1.22735648,3980.2,3979.8,1.75883]
[1733560821552,1.22735648,3980.2,3979.6,1.75897]
[1733560821864,1.22735648,3980.2,3980.1,1.607662]
[1733560822962,1.22735648,3980.2,3980.1,1.456584]
[1733560824879,1.25876395,3980.2,3979.5,1.75897]
[1733560825087,1.25876395,3980.2,3979.8,1.75886]
[1733560825379,1.25876395,3980.2,3979.5,1.75897]
[1733560825380,1.43333288,3980.2,3979.5,1.75897]
[1733560825540,1.22735648,3980.2,3979.5,2.36290179]
[1733560825745,1.22735648,3980.2,3980.1,1.75874]
[1733560828251,1.22735648,3980.2,3980.1,1.607662]
[1733560828980,1.22735648,3980.2,3980.1,1.456584]
[1733560831265,1.22735648,3980.2,3980.1,1.479084]
[1733560831471,1.22735648,3980.2,3980.1,1.86328258]
[1733560831984,0.66229374,3980.2,3980.1,1.86328258]
[1733560833706,3.74e-06,3980.2,3980.1,1.86328258]
[1733560833854,0.7655,3981.1,3981.0,1.75835]
[1733560834060,0.8548232,3981.1,3981.0,1.75835]
[1733560834455,0.0893232,3981.1,3981.0,1.75835]
[1733560834679,0.793,3981.3,3981.0,1.75835]
[1733560834989,0.08646188,3981.2,3980.7,1.75848]
[1733560835154,0.08646188,3981.2,3980.6,1.75848]
[1733560835362,0.793,3981.3,3981.2,1.75826]
[1733560835685,0.87949666,3981.3,3981.2,1.75826]
[1733560835989,0.793,3981.9,3981.5,1.75813]
[1733560836359,0.0865607,3981.8,3981.5,1.75813]
[1733560836585,0.0865607,3981.8,3981.6,1.75808]
[1733560836974,0.0865607,3981.8,3981.3,1.75819]
[1733560838092,0.0865607,3981.8,3981.1,1.7583]
[1733560838093,0.11795784,3981.8,3981.1,1.7583]
[1733560838291,0.11795784,3981.8,3980.9,4.12127179]
[1733560838495,0.8145,3981.7,3981.0,1.75834]
[1733560838795,0.03139811,3981.6,3981.0,1.75834]
[1733560839821,0.03139811,3981.6,3980.7,1.78097]
[1733560839979,0.8145,3981.5,3980.5,2.36290179]
[1733560840175,0.03139981,3981.4,3980.5,2.36290179]
[1733560840585,0.08661393,3981.3,3980.5,2.36290179]
[1733560840777,0.08661393,3981.3,3980.5,2.77731097]
[1733560841076,0.08661393,3981.3,3980.8,1.75843]
[1733560841284,0.11801372,3981.3,3980.8,1.75843]
[1733560841608,0.11801372,3981.3,3980.6,1.75849]
[1733560841910,0.08661393,3981.3,3980.8,1.75843]
[1733560842262,0.8145,3981.5,3980.8,1.75843]
[1733560842568,0.08662674,3981.4,3981.1,1.08980222]
[1733560842976,0.8145,3981.5,3981.1,1.08980222]
[1733560843186,0.8145,3981.5,3981.4,1.08980222]
[1733560843396,0.7631,3982.3,3981.4,1.08980222]
[1733560843591,0.7631,3982.3,3981.4,2.84795222]
[1733560844266,0.7631,3982.3,3981.5,1.75811]
[1733560844471,2.46925774,3982.2,3981.7,1.08980222]
[1733560844679,0.7631,3982.3,3981.8,1.75799]
[1733560845373,0.7631,3982.3,3982.0,1.08980222]
[1733560845970,0.03139194,3982.2,3981.7,1.08980222]
[1733560846595,0.03139194,3982.2,3981.6,1.75805]
[1733560847409,0.03139194,3982.2,3981.3,2.36044257]
[1733560847625,0.03139194,3982.2,3981.4,1.75817]
[1733560847981,1.75794,3982.0,3980.2,0.0225]
[1733560848177,0.94203319,3981.9,3980.6,1.78102]
[1733560848431,0.7631,3981.9,3980.9,2.36044257]
[1733560848728,0.7631,3981.9,3981.3,1.7582]
[1733560848890,0.03139575,3981.8,3981.3,1.7582]
[1733560849223,0.03139575,3981.8,3981.0,1.75832]
[1733560849429,0.7631,3981.9,3981.0,1.75833]
[1733560849582,0.0842311,3981.7,3981.0,1.75833]
[1733560849784,0.08411544,3981.8,3981.0,1.75833]
[1733560850016,0.7631,3981.9,3981.0,1.75833]
[1733560850265,0.08410263,3981.7,3981.0,1.75833]
[1733560850418,0.08411544,3981.8,3981.0,1.75833]
[1733560850625,0.08408982,3981.6,3981.0,1.75833]
[1733560850920,0.08407701,3981.5,3981.0,1.75833]
[1733560851282,0.7631,3981.9,3981.0,1.75833]
[1733560851489,0.08411544,3981.8,3981.0,1.75833]
[1733560852124,0.08411544,3981.8,3980.7,1.75844]
[1733560852125,0.7631,3981.6,3980.7,1.75844]
[1733560852385,0.03139901,3981.5,3980.7,1.75844]
[1733560852623,0.03139895,3981.5,3980.7,1.75844]
[1733560852799,0.08404584,3981.4,3980.8,1.75843]
[1733560858192,0.03139887,3981.4,3980.8,1.75843]
[1733560858398,0.08398899,3981.3,3980.8,1.75843]
[1733560859003,0.8157,3981.1,3980.5,1.75856]
[1733560859195,0.03140207,3981.0,3980.4,1.7586]
[1733560859407,0.8157,3981.1,3980.4,1.7586]
[1733560859640,0.08393775,3980.9,3980.4,1.7586]
[1733560859792,0.8157,3981.1,3980.4,1.7586]
[1733560859793,0.08395056,3981.0,3980.4,1.7586]
[1733560859994,0.08392494,3980.8,3980.4,1.7586]
[1733560860238,0.08393775,3980.9,3980.4,1.7586]
[1733560860416,0.8157,3981.1,3980.4,1.7586]
[1733560860735,0.8157,3981.1,3980.7,1.75848]
[1733560860945,0.08395056,3981.0,3980.7,1.75848]
[1733560861099,0.8157,3981.1,3980.4,1.75858]